bitfinex-derivatives/quotes_BTCF0:USTF0_20210406
["timestamp","ask_amount","ask_price","bid_price","bid_amount"]
[1617671127331,1.46463758,59241.0,59240.0,0.65505271]
[1617671131133,0.46463758,59241.0,59240.0,0.29730815]
[1617671131634,0.46463758,59241.0,59240.0,0.7150409]
[1617671132060,0.46463758,59241.0,59240.0,0.65517208]
[1617671132061,0.10725655,59241.0,59240.0,0.65517208]
[1617671132337,0.3579576,59243.0,59240.0,0.71503882]
[1617671132763,0.10725655,59245.0,59242.0,0.7629735]
[1617671133135,0.10725655,59245.0,59244.0,0.65570181]
[1617671133537,0.46520204,59245.0,59244.0,0.65570181]
[1617671134637,0.10725655,59245.0,59244.0,0.65570181]
[1617671135439,0.46519639,59245.0,59244.0,0.65570181]
[1617671135638,1.46519639,59245.0,59244.0,0.65570181]
[1617671136037,1.10725655,59245.0,59244.0,0.65570181]
[1617671136538,1.46519781,59245.0,59244.0,0.70700181]
[1617671137237,1.46519781,59245.0,59244.0,0.65570181]
[1617671137442,1.46519781,59245.0,59244.0,0.7155676]
[1617671137839,1.46519781,59245.0,59244.0,0.65570181]
[1617671138141,0.46519781,59245.0,59244.0,0.65570181]
[1617671138340,0.10725655,59245.0,59244.0,0.65570181]
[1617671138740,0.10725655,59245.0,59244.0,0.81345836]
[1617671139542,0.10725655,59245.0,59244.0,0.87332289]
[1617671140446,0.35797454,59248.0,59244.0,1.3103324]
[1617671140845,0.35797234,59250.0,59244.0,1.3103324]
[1617671141244,0.35797234,59250.0,59249.0,0.65518106]
[1617671141746,0.35796539,59251.0,59249.0,0.65518106]
[1617671142245,0.29503842,59257.0,59250.0,0.65566147]
[1617671142246,0.4374944,59254.0,59250.0,0.65566147]
[1617671142545,0.4374944,59254.0,59251.0,0.0512]
[1617671142745,0.29503842,59257.0,59253.0,0.40526899]
[1617671142746,0.43749417,59255.0,59253.0,0.40526899]
[1617671143148,0.79546668,59254.0,59253.0,0.10725655]
[1617671143446,1.79546668,59254.0,59253.0,0.10725655]
[1617671143646,1.79546668,59254.0,59253.0,0.4052697]
[1617671144147,1.86543934,59254.0,59253.0,0.10725655]
[1617671145547,0.86543934,59254.0,59253.0,0.10725655]
[1617671145948,1.86543934,59254.0,59253.0,0.10725655]
[1617671146149,1.79546668,59254.0,59253.0,0.10725655]
[1617671146449,0.79546668,59254.0,59253.0,0.10725655]
[1617671146648,0.86544638,59254.0,59253.0,0.10725655]
[1617671147349,0.86544638,59254.0,59253.0,0.15705655]
[1617671147551,0.86544638,59254.0,59253.0,0.10725655]
[1617671148150,0.79546668,59254.0,59253.0,0.40521863]
[1617671148352,0.79546668,59254.0,59253.0,0.55732863]
[1617671148652,0.42792097,59254.0,59253.0,0.55732863]
[1617671149350,0.35796995,59254.0,59253.0,0.40521863]
[1617671149752,0.79547194,59254.0,59253.0,0.40521863]
[1617671150352,0.79547194,59254.0,59253.0,0.76363183]
[1617671151252,0.86545694,59254.0,59253.0,0.76363183]
[1617671152052,1.86545694,59254.0,59253.0,0.76363183]
[1617671152351,1.86545694,59254.0,59253.0,0.40521863]
[1617671152752,1.86545694,59254.0,59253.0,0.45561863]
[1617671153353,1.86545694,59254.0,59253.0,0.40521863]
[1617671154154,2.36303017,59254.0,59253.0,0.29796208]
[1617671154355,1.36303017,59254.0,59253.0,0.34836208]
[1617671154655,5.09143017,59254.0,59253.0,0.29796208]
[1617671155156,5.39435839,59254.0,59248.0,0.29872337]
[1617671155557,1.29260891,59249.0,59248.0,0.29872337]
[1617671155957,1.29260891,59249.0,59247.0,0.29872495]
[1617671156259,2.29260891,59249.0,59247.0,0.29872495]
[1617671156457,0.3730983,59253.0,59236.0,0.05987065]
[1617671156458,1.79576997,59248.0,59246.0,0.35846878]
[1617671156960,0.97342938,59247.0,59244.0,0.15805655]
[1617671157261,0.61524371,59247.0,59244.0,0.15805655]
[1617671157462,0.21199655,59247.0,59246.0,0.65719381]
[1617671157864,0.51498634,59247.0,59246.0,0.65719381]
[1617671158163,1.00767085,59247.0,59246.0,0.71706116]
[1617671158362,2.00767085,59247.0,59246.0,0.71706116]
[1617671158563,2.00767085,59247.0,59246.0,0.76786116]
[1617671158766,2.00767085,59247.0,59246.0,0.70799114]
[1617671159166,2.00767085,59247.0,59246.0,0.40939329]
[1617671159564,2.00767085,59247.0,59246.0,0.35859329]
[1617671160263,2.00767085,59247.0,59246.0,0.29872179]
[1617671160464,2.50469338,59247.0,59246.0,0.29872179]
[1617671160865,2.50469338,59247.0,59246.0,0.34872179]
[1617671161065,2.00767085,59247.0,59246.0,0.70719158]
[1617671161566,2.00767085,59247.0,59246.0,0.76706163]
[1617671162065,2.00767085,59247.0,59246.0,0.71706163]
[1617671162266,1.00767085,59247.0,59246.0,0.71706163]
[1617671162869,1.00767085,59247.0,59246.0,1.15540782]
[1617671163168,0.9004143,59247.0,59246.0,1.15540782]
[1617671163369,0.9004143,59247.0,59246.0,0.71706163]
[1617671163771,0.9004143,59247.0,59246.0,0.76786163]
[1617671163971,0.7956743,59247.0,59246.0,0.76786163]
[1617671164271,0.7956743,59247.0,59246.0,1.206189]
[1617671165371,0.7956743,59247.0,59246.0,0.71706163]
[1617671165772,0.7956743,59247.0,59246.0,1.15539107]
[1617671166373,0.7956743,59247.0,59246.0,0.71706163]
[1617671166573,0.7956743,59247.0,59246.0,0.76686163]
[1617671166773,0.7956743,59247.0,59246.0,0.71706163]
[1617671167474,0.7956743,59247.0,59246.0,3.62736163]
[1617671167673,0.7882743,59247.0,59246.0,3.67736163]
[1617671167874,0.7353743,59247.0,59246.0,3.87736163]
[1617671168075,0.35762521,59247.0,59246.0,5.40543271]
[1617671168475,0.4383568,59258.0,59246.0,6.04301043]
[1617671168674,0.4383568,59258.0,59246.0,5.99301043]
[1617671168994,0.4382862,59264.0,59258.0,0.2]
[1617671169175,0.4382862,59264.0,59258.0,0.31772]
[1617671169481,0.10725655,59283.0,59258.0,0.31772]
[1617671169482,0.10725655,59283.0,59263.0,0.7354193]
[1617671169483,0.43827544,59269.0,59263.0,0.7354193]
[1617671169676,0.43826164,59270.0,59263.0,1.23223691]
[1617671169975,0.43826164,59270.0,59264.0,0.2]
[1617671170175,0.43824904,59272.0,59269.0,0.73497629]
[1617671170575,0.43824805,59273.0,59271.0,0.73485794]
[1617671170774,2.8403,59272.0,59271.0,0.73485794]
[1617671170975,3.2785523,59272.0,59271.0,0.54419911]
[1617671171375,3.2785523,59272.0,59271.0,0.90204548]
[1617671172075,0.4382523,59272.0,59271.0,0.90204548]
[1617671172477,1.0,59276.0,59271.0,0.90204548]
[1617671173077,1.0,59275.0,59272.0,0.05984487]
[1617671173336,2.8266,59273.0,59272.0,0.05984487]
[1617671173477,3.26488215,59273.0,59272.0,0.05984487]
[1617671173677,4.26488215,59273.0,59272.0,0.05984487]
[1617671173878,4.98179958,59273.0,59272.0,0.29813257]
[1617671174111,4.98179958,59273.0,59272.0,0.34843257]
[1617671174283,4.98179958,59273.0,59272.0,0.0503]
[1617671174496,4.98179958,59273.0,59271.0,0.40543656]
[1617671174681,3.98179958,59273.0,59271.0,0.40543656]
[1617671175281,0.43722808,59272.0,59271.0,0.10725655]
[1617671176082,3.26372,59273.0,59271.0,0.10725655]
[1617671176484,0.48811929,59272.0,59271.0,0.10725655]
[1617671177484,0.43711929,59272.0,59271.0,0.10725655]
[1617671178322,0.43711406,59273.0,59271.0,0.10725655]
[1617671178686,0.43706945,59279.0,59272.0,0.29651845]
[1617671178986,0.43706945,59279.0,59278.0,0.10725655]
[1617671179189,0.43706493,59280.0,59278.0,0.10725655]
[1617671179587,0.43706781,59279.0,59278.0,0.10725655]
[1617671180588,0.43706392,59280.0,59278.0,0.10725655]
[1617671180889,0.43706496,59279.0,59278.0,0.10725655]
[1617671182394,0.56617496,59279.0,59278.0,0.10725655]
[1617671182595,4.74917496,59279.0,59278.0,0.10725655]
[1617671183093,4.85643151,59279.0,59278.0,0.10725655]
[1617671183295,5.5824603,59279.0,59278.0,0.10725655]
[1617671185196,5.5824603,59279.0,59278.0,0.15735655]
[1617671185397,5.6333603,59279.0,59278.0,0.10725655]
[1617671185697,5.5824603,59279.0,59278.0,0.10725655]
[1617671189715,7.0824603,59279.0,59263.0,0.29691795]
[1617671190019,7.0824603,59279.0,59259.0,0.1281]
[1617671190020,7.0824603,59279.0,59262.0,0.29693549]
[1617671190212,0.43711906,59265.0,59263.0,0.0511]
[1617671190409,0.59294906,59265.0,59261.0,0.29710277]
[1617671190703,0.59294906,59265.0,59260.0,0.29712944]
[1617671191104,0.15583,59265.0,59264.0,0.10725655]
[1617671191706,1.43712437,59265.0,59264.0,0.10725655]
[1617671192005,0.43712437,59265.0,59264.0,0.10725655]
[1617671192405,1.0,59266.0,59264.0,0.10725655]
[1617671192806,1.43712157,59266.0,59264.0,0.10725655]
[1617671193306,0.10725655,59265.0,59264.0,0.10725655]
[1617671194611,0.26077655,59265.0,59264.0,0.10725655]
[1617671195016,0.69790779,59265.0,59264.0,0.10725655]
[1617671195215,1.69790779,59265.0,59264.0,0.10725655]
[1617671198517,0.69790779,59265.0,59264.0,0.10725655]
[1617671199321,0.26077655,59265.0,59264.0,0.10725655]
[1617671199519,0.10725655,59265.0,59264.0,0.10725655]
[1617671199720,0.10725655,59265.0,59264.0,0.40417459]
[1617671201124,0.10725655,59265.0,59264.0,0.10725655]
[1617671201323,1.10725655,59265.0,59264.0,0.10725655]
[1617671201523,1.21407655,59265.0,59264.0,0.10725655]
[1617671202424,1.65136044,59265.0,59264.0,0.10725655]
[1617671206031,1.21407655,59265.0,59264.0,0.10725655]
[1617671206243,1.10725655,59265.0,59264.0,0.10725655]
[1617671207034,0.43725837,59266.0,59264.0,2.75255655]
[1617671207533,0.10725655,59283.0,59265.0,0.29708063]
[1617671207534,0.43724105,59268.0,59265.0,0.29708063]
[1617671208138,0.43720664,59272.0,59266.0,0.2]
[1617671208733,1.0,59282.0,59264.0,0.10725655]
[1617671209234,0.43719963,59272.0,59271.0,0.10725655]
[1617671209436,1.49683898,59275.0,59271.0,0.10725655]
[1617671209835,0.43733199,59272.0,59271.0,0.10725655]
[1617671212137,0.10725655,59273.0,59271.0,0.40430638]
[1617671212338,0.10725655,59273.0,59271.0,0.55560638]
[1617671213642,0.10725655,59273.0,59272.0,0.0505]
[1617671213843,0.10725655,59273.0,59271.0,0.55560638]
[1617671214743,0.10725655,59273.0,59272.0,0.29669735]
[1617671216345,0.43724563,59276.0,59272.0,0.29669735]
[1617671216645,0.43724563,59276.0,59275.0,3.4731]
[1617671217545,0.10725655,59284.0,59275.0,4.18477219]
[1617671217546,0.43721841,59281.0,59275.0,4.18477219]
[1617671218047,0.4372165,59283.0,59275.0,4.18477219]
[1617671218346,0.4372165,59283.0,59280.0,0.29619049]
[1617671219248,0.10725655,59284.0,59279.0,0.2962881]
[1617671219249,0.43721852,59281.0,59279.0,0.2962881]
[1617671220149,0.43723099,59280.0,59276.0,0.29644049]
[1617671220349,0.43723099,59280.0,59277.0,0.0499]
[1617671220550,0.43687902,59281.0,59277.0,0.0499]
[1617671220750,0.43687902,59281.0,59276.0,0.29644049]
[1617671220951,0.53913809,59284.0,59278.0,0.29605761]
[1617671221251,0.53913809,59284.0,59283.0,0.10725655]
[1617671221451,0.10225655,59284.0,59283.0,0.10725655]
[1617671221852,0.53913488,59284.0,59283.0,0.21040655]
[1617671222252,0.53913488,59284.0,59283.0,0.26060655]
[1617671222452,0.53913488,59284.0,59283.0,0.21040655]
[1617671223253,0.43687833,59284.0,59283.0,0.21040655]
[1617671224456,1.0,59292.0,59283.0,0.21040655]
[1617671224457,0.49724247,59289.0,59283.0,0.50673523]
[1617671224657,0.43755982,59285.0,59283.0,0.86219312]
[1617671225058,0.43754999,59287.0,59284.0,0.71132604]
[1617671225686,0.43754243,59289.0,59286.0,0.6513434]
[1617671226058,1.0,59302.0,59286.0,0.6513434]
[1617671226059,0.43754278,59291.0,59286.0,0.6513434]
[1617671226658,0.43754186,59292.0,59290.0,2.80847084]
[1617671227066,1.0,59305.0,59290.0,2.5124]
[1617671227067,0.43628106,59299.0,59290.0,2.5124]
[1617671227260,0.43626987,59300.0,59298.0,0.10725655]
[1617671227458,0.43626987,59300.0,59298.0,0.24929655]
[1617671228559,0.43627329,59299.0,59298.0,0.24929655]
[1617671232866,0.43627807,59300.0,59298.0,0.24929655]
[1617671235069,3.5275,59299.0,59298.0,0.10725655]
[1617671235268,4.6878,59299.0,59298.0,0.10725655]
[1617671235685,4.6878,59299.0,59287.0,0.42283454]
[1617671235877,5.12381835,59299.0,59287.0,0.1281]
[1617671236270,0.43602927,59296.0,59287.0,0.1281]
[1617671237075,0.4360351,59295.0,59287.0,0.1281]
[1617671237370,0.4360351,59295.0,59293.0,0.10725655]
[1617671237594,0.43605439,59294.0,59293.0,0.10725655]
[1617671238574,1.43605439,59294.0,59293.0,0.10725655]
[1617671238773,1.43605439,59294.0,59287.0,0.1281]
[1617671239172,0.43605439,59294.0,59287.0,0.1281]
[1617671239372,1.0,59288.0,59287.0,0.1281]
[1617671239773,0.10725655,59290.0,59287.0,0.1281]
[1617671241374,0.10725655,59290.0,59289.0,0.10725655]
[1617671242275,1.10725655,59290.0,59289.0,0.10725655]
[1617671243377,0.43609977,59294.0,59289.0,0.10725655]
[1617671243579,0.43609929,59293.0,59289.0,0.10725655]
[1617671243979,0.43610007,59295.0,59289.0,0.10725655]
[1617671245879,1.43610007,59295.0,59289.0,0.10725655]
[1617671246281,1.0,59293.0,59287.0,0.1281]
[1617671246683,1.0,59290.0,59287.0,0.1281]
[1617671247084,1.0,59289.0,59287.0,0.1281]
[1617671247383,1.43611719,59293.0,59292.0,0.10725655]
[1617671247584,1.0,59293.0,59292.0,0.10725655]
[1617671248789,1.0,59293.0,59292.0,0.21367655]
[1617671249084,0.43594489,59295.0,59292.0,0.21367655]
[1617671249307,1.0,59293.0,59292.0,0.21367655]
[1617671249486,0.43594489,59295.0,59292.0,0.21367655]
[1617671249887,1.0,59293.0,59292.0,0.21367655]
[1617671250088,0.22011611,59298.0,59292.0,2.89457655]
[1617671250089,0.43607719,59294.0,59292.0,2.89457655]
[1617671250487,0.55498031,59309.0,59292.0,2.89457655]
[1617671250488,0.43607762,59297.0,59292.0,2.89457655]
[1617671251187,0.43607027,59298.0,59292.0,2.89457655]
[1617671251887,0.43607508,59299.0,59292.0,2.89457655]
[1617671252088,0.43607508,59299.0,59292.0,0.21367655]
[1617671252287,1.0,59301.0,59292.0,0.21367655]
[1617671252288,0.43606974,59298.0,59292.0,0.10725655]
[1617671252689,1.0,59294.0,59292.0,0.10725655]
[1617671252889,0.0501,59293.0,59292.0,0.10725655]
[1617671253090,1.0,59293.0,59292.0,0.10725655]
[1617671253290,1.0,59296.0,59292.0,0.10725655]
[1617671253692,0.43608114,59297.0,59292.0,0.10725655]
[1617671253891,0.43607671,59298.0,59292.0,0.10725655]
[1617671254391,0.436065,59299.0,59292.0,0.10725655]
[1617671255390,0.436065,59299.0,59298.0,0.10725655]
[1617671261198,1.98342956,59299.0,59298.0,0.10725655]
[1617671261425,5.27332956,59299.0,59298.0,0.10725655]
[1617671262199,5.92236325,59299.0,59298.0,0.10725655]
[1617671262499,5.45473483,59299.0,59298.0,0.10725655]
[1617671263300,4.45473483,59299.0,59298.0,0.10725655]
[1617671263702,5.45473483,59299.0,59298.0,0.10725655]
[1617671263902,2.16483483,59299.0,59298.0,0.10725655]
[1617671264304,1.93232956,59299.0,59298.0,0.10725655]
[1617671264504,1.93232956,59299.0,59298.0,3.61245655]
[1617671265106,1.93232956,59299.0,59298.0,0.10725655]
[1617671265405,0.93232956,59299.0,59298.0,0.10725655]
[1617671265605,4.85452956,59299.0,59298.0,0.10725655]
[1617671265804,4.85452956,59299.0,59284.0,0.29540454]
[1617671265805,6.35452956,59299.0,59284.0,0.29540454]
[1617671266005,3.59005956,59299.0,59284.0,0.29540454]
[1617671266207,2.8839,59285.0,59283.0,0.1281]
[1617671266407,4.01579,59285.0,59283.0,0.1281]
[1617671266610,4.45255883,59285.0,59283.0,0.1281]
[1617671267108,4.01579,59285.0,59283.0,0.1281]
[1617671267509,4.01579,59285.0,59284.0,0.10725655]
[1617671268412,4.45257718,59285.0,59284.0,0.15705655]
[1617671268813,1.56867718,59285.0,59284.0,0.15705655]
[1617671269014,1.56867718,59285.0,59284.0,0.10725655]
[1617671269217,1.13189,59285.0,59284.0,0.10725655]
[1617671269515,1.23914655,59285.0,59284.0,0.10725655]
[1617671269716,1.67680973,59285.0,59284.0,0.10725655]
[1617671270118,1.67680973,59285.0,59284.0,0.40316783]
[1617671270519,1.67680973,59285.0,59284.0,0.10725655]
[1617671272222,0.67680973,59285.0,59284.0,0.10725655]
[1617671272465,0.54491973,59285.0,59284.0,3.58625655]
[1617671272635,0.43766318,59285.0,59284.0,3.58625655]
[1617671273029,0.43766318,59285.0,59284.0,3.88203592]
[1617671273528,0.43769052,59286.0,59284.0,4.23689092]
[1617671273728,0.43769746,59287.0,59284.0,4.23689092]
[1617671274528,0.49736672,59292.0,59286.0,0.29574706]
[1617671274828,0.49736246,59293.0,59288.0,0.2957129]
[1617671275228,0.49736246,59293.0,59285.0,0.4146965]
[1617671275229,0.43768928,59289.0,59286.0,0.35479175]
[1617671275634,0.49736246,59293.0,59288.0,0.29563186]
[1617671276031,0.43768989,59289.0,59288.0,0.29563186]
[1617671276833,0.58658989,59289.0,59288.0,0.29563186]
[1617671277632,1.58658989,59289.0,59286.0,0.29571733]
[1617671277832,1.82003891,59289.0,59286.0,0.29571733]
[1617671278032,1.0,59287.0,59286.0,0.29571733]
[1617671278432,1.0,59287.0,59284.0,0.10725655]
[1617671278433,1.43770987,59287.0,59285.0,0.29589952]
[1617671278832,1.43770987,59287.0,59284.0,0.10725655]
[1617671278833,0.437714,59286.0,59284.0,0.10725655]
[1617671279032,1.437714,59286.0,59284.0,0.10725655]
[1617671279234,0.43770882,59285.0,59284.0,0.40320752]
[1617671279435,1.43770882,59285.0,59284.0,0.40320752]
[1617671280435,1.43770882,59285.0,59284.0,0.75862532]
[1617671280934,1.43770882,59285.0,59284.0,0.40320752]
[1617671282338,1.98625804,59285.0,59284.0,0.10725655]
[1617671282838,1.93545804,59285.0,59284.0,0.10725655]
[1617671283537,0.10725655,59284.0,59283.0,0.29636604]
[1617671284040,0.54529208,59284.0,59283.0,0.29636604]
[1617671284643,0.54529208,59284.0,59280.0,0.29677141]
[1617671284644,1.04305122,59284.0,59280.0,0.29677141]
[1617671284856,2.04305122,59284.0,59280.0,0.29677141]
[1617671285045,1.0,59282.0,59281.0,0.2967424]
[1617671285445,0.49774641,59283.0,59281.0,0.2967424]
[1617671285646,0.49774641,59283.0,59282.0,0.10725655]
[1617671285947,0.24886622,59283.0,59282.0,0.10725655]
[1617671286368,0.49755511,59287.0,59282.0,3.89769156]
[1617671286646,0.43786043,59283.0,59282.0,4.19435215]
[1617671286848,0.43786043,59283.0,59282.0,3.68185655]
[1617671287050,0.43786043,59283.0,59282.0,3.48185655]
[1617671287249,0.43786043,59283.0,59282.0,4.13440958]
[1617671288148,0.43786043,59283.0,59282.0,0.75980958]
[1617671288948,0.54941043,59283.0,59282.0,0.75980958]
[1617671289450,0.79287934,59283.0,59282.0,0.40387156]
[1617671289851,0.79287927,59283.0,59282.0,0.40387156]
[1617671290352,0.5496287,59283.0,59282.0,0.76005197]
[1617671290754,0.79296144,59283.0,59282.0,0.40398174]
[1617671291155,0.54962948,59283.0,59282.0,0.40398174]
[1617671291555,0.43807948,59283.0,59282.0,0.40398174]
[1617671291754,0.54533603,59283.0,59282.0,0.76026303]
[1617671295659,0.54533603,59283.0,59282.0,0.40398174]
[1617671296360,0.54533603,59283.0,59282.0,0.76044377]
[1617671296659,0.43807948,59283.0,59282.0,0.76044377]
[1617671299760,0.54533603,59283.0,59282.0,0.76044377]
[1617671299960,1.54533603,59283.0,59282.0,0.76044377]
[1617671300360,1.10725655,59283.0,59282.0,0.76044377]
[1617671300661,1.78859316,59283.0,59282.0,0.40398174]
[1617671301160,1.78859475,59283.0,59282.0,0.40398174]
[1617671301561,1.54532436,59283.0,59282.0,0.40398174]
[1617671301960,1.54532436,59283.0,59282.0,0.10725655]
[1617671302161,1.54532436,59283.0,59282.0,0.40430395]
[1617671303965,0.54532436,59283.0,59282.0,0.40430395]
[1617671304165,4.15472436,59283.0,59282.0,0.2970474]
[1617671304366,5.15472436,59283.0,59282.0,0.2970474]
[1617671304767,5.89599863,59283.0,59275.0,0.29744529]
[1617671305567,0.93602678,59276.0,59274.0,0.29760217]
[1617671305767,0.10725655,59275.0,59274.0,0.29760217]
[1617671306067,1.1855507,59275.0,59274.0,0.29760217]
[1617671306368,2.1855507,59275.0,59274.0,0.29760217]
[1617671307873,1.68766655,59275.0,59271.0,0.29756707]
[1617671308372,1.43754452,59272.0,59269.0,0.29765419]
[1617671308771,0.437546,59270.0,59269.0,0.29765419]
[1617671310674,1.437546,59270.0,59269.0,0.29765419]
[1617671310876,0.437546,59270.0,59269.0,0.29765419]
[1617671311675,1.0,59270.0,59269.0,0.29765419]
[1617671312277,1.43750312,59270.0,59269.0,0.29765419]
[1617671312476,2.93750312,59270.0,59269.0,0.29765419]
[1617671312677,2.93750312,59270.0,59266.0,0.35714963]
[1617671312678,10.94090312,59270.0,59268.0,0.29770471]
[1617671313078,10.94090312,59270.0,59259.0,0.29821883]
[1617671313079,1.60400027,59269.0,59259.0,0.29821883]
[1617671313277,1.5,59268.0,59259.0,0.29821883]
[1617671313483,1.5,59268.0,59236.0,0.55667514]
[1617671313484,0.43733298,59260.0,59255.0,0.2982799]
[1617671313677,0.58687298,59260.0,59255.0,0.2982799]
[1617671313877,0.10725655,59256.0,59255.0,0.2982799]
[1617671314120,1.54441701,59256.0,59255.0,0.2982799]
[1617671314524,0.10725655,59256.0,59255.0,0.2982799]
[1617671314977,0.10725655,59256.0,59255.0,0.65620341]
[1617671315778,0.10725655,59256.0,59255.0,0.76345996]
[1617671316380,0.10725655,59256.0,59255.0,0.82332019]
[1617671317382,1.10725655,59256.0,59255.0,0.82332019]
[1617671318183,1.10725655,59256.0,59255.0,0.71606364]
[1617671318784,4.56875655,59256.0,59255.0,0.71606364]
[1617671318986,4.56875655,59256.0,59251.0,0.29755593]
[1617671319184,5.06875655,59256.0,59251.0,0.29755593]
[1617671319584,1.0,59252.0,59251.0,0.29755593]
[1617671319784,1.0,59252.0,59229.0,0.13968027]
[1617671319785,1.0,59252.0,59247.0,0.40483097]
[1617671320284,1.0,59252.0,59247.0,0.10725655]
[1617671320585,1.0,59248.0,59247.0,0.10725655]
[1617671320785,1.1369,59248.0,59247.0,0.4048343]
[1617671321584,1.1369,59248.0,59247.0,0.76201544]
[1617671321984,1.24415655,59248.0,59247.0,0.76201544]
[1617671322485,1.24415655,59248.0,59247.0,0.4048343]
[1617671329099,1.24415655,59248.0,59247.0,0.10725655]
[1617671332104,0.1369,59248.0,59247.0,0.10725655]
[1617671332407,1.0,59350.0,59247.0,0.10725655]
[1617671332408,1.0,59256.0,59247.0,3.39735655]
[1617671332806,0.49413499,59267.0,59248.0,0.2]
[1617671332807,0.43532756,59265.0,59248.0,0.2]
[1617671333208,0.4883,59285.0,59264.0,2.4691]
[1617671333209,1.43580752,59272.0,59264.0,2.4691]
[1617671333423,1.43580752,59272.0,59264.0,2.63092]
[1617671333607,1.0,59272.0,59264.0,2.63092]
[1617671334008,1.0,59272.0,59271.0,0.10725655]
[1617671338212,1.0,59273.0,59271.0,0.10725655]
[1617671339413,1.0,59274.0,59271.0,0.10725655]
[1617671339613,0.10725655,59280.0,59271.0,0.10725655]
[1617671339813,1.0,59275.0,59271.0,0.10725655]
[1617671340013,0.10725655,59280.0,59271.0,0.10725655]
[1617671340614,0.43575947,59282.0,59271.0,0.10725655]
[1617671340814,0.43575947,59282.0,59280.0,3.4118]
[1617671341119,1.0,59289.0,59280.0,3.4118]
[1617671341120,1.0,59289.0,59280.0,3.54012]
[1617671341121,0.43573542,59286.0,59280.0,3.54012]
[1617671341315,0.43589756,59287.0,59280.0,3.54012]
[1617671342015,0.43589434,59286.0,59285.0,0.10725655]
[1617671342415,0.43589272,59287.0,59285.0,0.10725655]
[1617671342820,0.40687471,59301.0,59285.0,0.10725655]
[1617671342821,0.43586608,59289.0,59286.0,2.6789]
[1617671343316,0.43584415,59291.0,59286.0,2.6789]
[1617671343720,0.43584918,59292.0,59286.0,2.6789]
[1617671343915,0.43584918,59292.0,59291.0,0.10725655]
[1617671346019,0.43571626,59293.0,59291.0,0.10725655]
[1617671346220,1.0,59292.0,59291.0,0.10725655]
[1617671346418,0.43571626,59293.0,59291.0,0.10725655]
[1617671346618,1.0,59292.0,59291.0,0.10725655]
[1617671350121,1.0,59292.0,59291.0,3.02905655]
[1617671350722,0.54297088,59294.0,59291.0,3.02905655]
[1617671350922,0.54297088,59294.0,59291.0,3.16149655]
[1617671351225,0.10725655,59294.0,59291.0,3.16149655]
[1617671351422,0.10725655,59294.0,59292.0,0.2]
[1617671351737,0.43569357,59297.0,59292.0,0.2]
[1617671351952,0.22184245,59299.0,59296.0,3.0471]
[1617671352124,0.93074956,59303.0,59297.0,0.2]
[1617671352125,0.0513,59302.0,59297.0,0.2]
[1617671352323,0.43565673,59303.0,59297.0,0.2]
[1617671352523,0.66170175,59317.0,59297.0,0.2]
[1617671352524,0.43561475,59305.0,59297.0,0.2]
[1617671353023,0.43560779,59313.0,59297.0,0.2]
[1617671353826,0.43560779,59313.0,59297.0,0.49447903]
[1617671354325,0.43560779,59313.0,59312.0,0.30725655]
[1617671354724,0.43558318,59315.0,59312.0,0.30725655]
[1617671355226,0.10725655,59323.0,59312.0,0.30725655]
[1617671355227,0.4355932,59314.0,59312.0,0.43724655]
[1617671355928,0.43432068,59320.0,59312.0,0.43724655]
[1617671356126,0.43432068,59320.0,59319.0,0.10725655]
[1617671356427,1.43391191,59322.0,59319.0,0.10725655]
[1617671357126,1.0,59320.0,59319.0,0.10725655]
[1617671357728,1.43392438,59320.0,59319.0,0.10725655]
[1617671358234,1.54118093,59320.0,59319.0,0.10725655]
[1617671360231,1.59118093,59320.0,59319.0,0.10725655]
[1617671360428,1.54118093,59320.0,59307.0,3.4246]
[1617671361128,0.43393324,59319.0,59307.0,3.4246]
[1617671361730,0.43394092,59318.0,59307.0,3.4246]
[1617671361929,1.0,59310.0,59307.0,3.4246]
[1617671362331,1.10725655,59310.0,59309.0,0.10725655]
[1617671368837,1.10725655,59310.0,59307.0,3.4246]
[1617671369042,2.60725655,59310.0,59293.0,0.1281]
[1617671369239,2.4778,59302.0,59293.0,0.1281]
[1617671369437,0.0513,59301.0,59293.0,0.1281]
[1617671369637,2.62714,59302.0,59293.0,0.1281]
[1617671370338,2.62714,59302.0,59299.0,0.10725655]
[1617671370939,1.0,59300.0,59299.0,0.10725655]
[1617671372340,1.10725655,59300.0,59299.0,0.10725655]
[1617671390169,1.54378825,59300.0,59299.0,0.10725655]
[1617671390368,1.70344825,59300.0,59299.0,0.10725655]
[1617671391069,6.08584825,59300.0,59299.0,0.10725655]
[1617671391268,6.08584825,59300.0,59293.0,0.1281]
[1617671391669,5.0507,59299.0,59293.0,0.1281]
[1617671391872,1.0,59294.0,59293.0,0.1281]
[1617671392069,2.5,59294.0,59293.0,0.1281]
[1617671392270,3.43271194,59294.0,59293.0,0.1281]
[1617671392470,3.53996849,59294.0,59293.0,0.1281]
[1617671392670,3.28089693,59294.0,59293.0,0.1281]
[1617671393572,3.77702052,59294.0,59293.0,0.1281]
[1617671404487,2.77702052,59294.0,59293.0,0.1281]
[1617671404686,3.77702052,59294.0,59293.0,0.1281]
[1617671405803,3.77702052,59294.0,59271.0,0.1281]
[1617671405804,0.00099743,59289.0,59271.0,0.1281]
[1617671405986,9.33236214,59294.0,59271.0,0.1281]
[1617671406188,1.0,59272.0,59271.0,0.1281]
[1617671406387,1.25569655,59272.0,59271.0,0.1281]
[1617671406989,1.69168442,59272.0,59271.0,0.1281]
[1617671407209,2.19168442,59272.0,59271.0,0.1281]
[1617671407417,3.19168442,59272.0,59271.0,0.1281]
[1617671407988,2.4284225,59272.0,59271.0,0.1281]
[1617671408387,3.4284225,59272.0,59271.0,0.1281]
[1617671409188,2.4284225,59272.0,59271.0,0.1281]
[1617671409388,8.4284225,59272.0,59271.0,0.1281]
[1617671409688,3.4284225,59272.0,59271.0,0.1281]
[1617671411390,8.4284225,59272.0,59271.0,0.1281]
[1617671411790,3.4284225,59272.0,59271.0,0.1281]
[1617671412090,8.4284225,59272.0,59271.0,0.1281]
[1617671412892,8.92346632,59272.0,59271.0,0.1281]
[1617671414895,8.92346632,59272.0,59253.0,0.1281]
[1617671415496,0.43561639,59263.0,59253.0,0.42565472]
[1617671415695,4.2582,59254.0,59253.0,0.42565472]
[1617671415898,4.39157,59254.0,59253.0,0.42565472]
[1617671416597,4.49882655,59254.0,59253.0,0.42565472]
[1617671416798,4.49882655,59254.0,59253.0,0.1281]
[1617671417401,4.49882655,59254.0,59253.0,0.4257849]
[1617671417802,7.74062655,59254.0,59253.0,0.1281]
[1617671418602,7.94062655,59254.0,59253.0,0.1281]
[1617671419003,7.99142655,59254.0,59236.0,0.1281]
[1617671419206,8.42445847,59254.0,59236.0,0.1281]
[1617671419606,0.43307867,59253.0,59236.0,0.1281]
[1617671419806,0.2,59251.0,59236.0,0.1281]